[Event "Titled Tuesday Blitz November 29 Late 2022"]
[White "Girsh, Daniel"]
[Black "Mekhitarian, Krikor Sevag"]
[WhiteFideId "30949190"]
[BlackFideId "2107660"]
[WhiteElo "2075"]
[BlackElo "2604"]
[Result "0-1"]
[Round "07"]
[TimeControl "180+1"]
[Date "2022.11.30"]
[WhiteClock "0:00:01"]
[BlackClock "0:01:03"]

1. e4 {[%clk 0:03:00]}  c5 {[%clk 0:02:59]} 2. Nf3 {[%clk 0:03:01]}  e6 {[%clk 0:02:59]} 3. d4 {[%clk 0:03:01]}  cxd4 {[%clk 0:03:00]} 4. Nxd4 {[%clk 0:03:02]}  Nc6 {[%clk 0:02:57]} 5. Nc3 {[%clk 0:03:01]}  a6 {[%clk 0:02:58]} 6. Be2 {[%clk 0:03:01]}  Nf6 {[%clk 0:02:57]} 7. O-O {[%clk 0:03:01]}  d6 {[%clk 0:02:56]} 8. Be3 {[%clk 0:03:01]}  Be7 {[%clk 0:02:56]} 9. f4 {[%clk 0:03:01]}  O-O {[%clk 0:02:56]} 10. Qe1 {[%clk 0:03:02]}  Bd7 {[%clk 0:02:55]} 11. Qg3 {[%clk 0:02:59]}  b5 {[%clk 0:02:55]} 12. a3 {[%clk 0:02:59]}  Qb8 {[%clk 0:02:55]} 13. Rae1 {[%clk 0:02:53]}  b4 {[%clk 0:02:54]} 14. axb4 {[%clk 0:02:53]}  Qxb4 {[%clk 0:02:53]} 15. Nxc6 {[%clk 0:02:51]}  Bxc6 {[%clk 0:02:54]} 16. Bd3 {[%clk 0:02:48]}  Qxb2 {[%clk 0:02:44]} 17. Bd4 {[%clk 0:02:48]}  Qb4 {[%clk 0:02:44]} 18. Bxf6 {[%clk 0:02:48]}  Bxf6 {[%clk 0:02:42]} 19. e5 {[%clk 0:02:47]}  dxe5 {[%clk 0:02:24]} 20. fxe5 {[%clk 0:02:46]}  Bh4 {[%clk 0:02:25]} 21. Qh3 {[%clk 0:02:37]}  g6 {[%clk 0:02:25]} 22. Ne4 {[%clk 0:02:33]}  Bxe4 {[%clk 0:02:22]} 23. Rxe4 {[%clk 0:02:33]}  Qc5+ {[%clk 0:02:21]} 24. Kh1 {[%clk 0:02:33]}  Bg5 {[%clk 0:02:08]} 25. Qg3 {[%clk 0:02:16]}  Bh6 {[%clk 0:02:08]} 26. h4 {[%clk 0:02:02]}  Bg7 {[%clk 0:02:05]} 27. h5 {[%clk 0:02:02]}  a5 {[%clk 0:02:05]} 28. Rfe1 {[%clk 0:01:28]}  a4 {[%clk 0:02:03]} 29. hxg6 {[%clk 0:01:27]}  hxg6 {[%clk 0:02:00]} 30. Rg4 {[%clk 0:01:27]}  a3 {[%clk 0:01:51]} 31. Rxg6 {[%clk 0:01:18]}  fxg6 {[%clk 0:01:51]} 32. Qxg6 {[%clk 0:01:14]}  Rf4 {[%clk 0:01:33]} 33. Qxe6+ {[%clk 0:01:03]}  Kf8 {[%clk 0:01:28]} 34. g3 {[%clk 0:00:57]}  Re8 {[%clk 0:01:23]} 35. Qg6 {[%clk 0:00:51]}  Rf2 {[%clk 0:01:20]} 36. e6 {[%clk 0:00:40]}  Qd5+ {[%clk 0:01:06]} 37. Re4 {[%clk 0:00:16]}  Rf6 {[%clk 0:01:05]} 38. Qg4 {[%clk 0:00:08]}  Rexe6 {[%clk 0:01:04]} 39. Qh5 {[%clk 0:00:01]}  Qxh5+ {[%clk 0:01:03]} 0-1


[Site "https://www.chess.com"]

[Event "Titled Tuesday Blitz November 29 Late 2022"]
[White "Goncalves, Davi Sulzbacher"]
[Black "Arnold, Ken"]
[WhiteFideId "2154510"]
[BlackFideId "2056836"]
[WhiteElo "2182"]
[BlackElo "2371"]
[Result "1/2-1/2"]
[Round "07"]
[TimeControl "180+1"]
[Date "2022.11.30"]
[WhiteClock "0:00:10"]
[BlackClock "0:00:33"]

1. d4 {[%clk 0:02:56]}  d5 {[%clk 0:03:00]} 2. Bf4 {[%clk 0:02:57]}  c6 {[%clk 0:02:59]} 3. e3 {[%clk 0:02:57]}  Nf6 {[%clk 0:02:58]} 4. Bd3 {[%clk 0:02:56]}  Bg4 {[%clk 0:02:55]} 5. f3 {[%clk 0:02:56]}  Bh5 {[%clk 0:02:55]} 6. g4 {[%clk 0:02:56]}  Bg6 {[%clk 0:02:55]} 7. h4 {[%clk 0:02:55]}  Bxd3 {[%clk 0:02:54]} 8. cxd3 {[%clk 0:02:55]}  e6 {[%clk 0:02:50]} 9. Ne2 {[%clk 0:02:54]}  Bd6 {[%clk 0:02:49]} 10. Qb3 {[%clk 0:02:52]}  Bxf4 {[%clk 0:02:35]} 11. Nxf4 {[%clk 0:02:52]}  Qb6 {[%clk 0:02:34]} 12. Qxb6 {[%clk 0:02:47]}  axb6 {[%clk 0:02:32]} 13. g5 {[%clk 0:02:47]}  Nfd7 {[%clk 0:02:22]} 14. Nh5 {[%clk 0:02:42]}  O-O {[%clk 0:02:20]} 15. Nc3 {[%clk 0:02:35]}  e5 {[%clk 0:02:18]} 16. Kd2 {[%clk 0:02:19]}  exd4 {[%clk 0:02:17]} 17. exd4 {[%clk 0:02:19]}  Re8 {[%clk 0:02:15]} 18. f4 {[%clk 0:01:58]}  Na6 {[%clk 0:02:13]} 19. f5 {[%clk 0:01:54]}  Nc7 {[%clk 0:02:09]} 20. Nf4 {[%clk 0:01:49]}  g6 {[%clk 0:02:00]} 21. h5 {[%clk 0:01:44]}  gxf5 {[%clk 0:01:59]} 22. g6 {[%clk 0:00:50]}  Ne6 {[%clk 0:01:58]} 23. gxh7+ {[%clk 0:00:47]}  Kxh7 {[%clk 0:01:56]} 24. Nfe2 {[%clk 0:00:47]}  Rg8 {[%clk 0:01:42]} 25. Raf1 {[%clk 0:00:46]}  Rg2 {[%clk 0:01:40]} 26. Rxf5 {[%clk 0:00:44]}  Nxd4 {[%clk 0:01:33]} 27. Rxf7+ {[%clk 0:00:44]}  Kh8 {[%clk 0:01:25]} 28. Rxd7 {[%clk 0:00:43]}  Re8 {[%clk 0:01:25]} 29. Re1 {[%clk 0:00:27]}  Nf3+ {[%clk 0:01:23]} 30. Kd1 {[%clk 0:00:27]}  Nxe1 {[%clk 0:01:22]} 31. Kxe1 {[%clk 0:00:28]}  Rg7 {[%clk 0:01:23]} 32. Rxg7 {[%clk 0:00:27]}  Kxg7 {[%clk 0:01:23]} 33. Kf2 {[%clk 0:00:25]}  Kh6 {[%clk 0:01:22]} 34. Ng3 {[%clk 0:00:25]}  Kg5 {[%clk 0:01:20]} 35. Nce2 {[%clk 0:00:21]}  c5 {[%clk 0:01:17]} 36. d4 {[%clk 0:00:20]}  Ra8 {[%clk 0:01:12]} 37. a3 {[%clk 0:00:20]}  Rf8+ {[%clk 0:01:03]} 38. Ke3 {[%clk 0:00:20]}  Re8+ {[%clk 0:01:02]} 39. Kd3 {[%clk 0:00:20]}  Kg4 {[%clk 0:00:54]} 40. dxc5 {[%clk 0:00:19]}  bxc5 {[%clk 0:00:53]} 41. h6 {[%clk 0:00:19]}  Rh8 {[%clk 0:00:49]} 42. Nf1 {[%clk 0:00:17]}  d4 {[%clk 0:00:45]} 43. b4 {[%clk 0:00:14]}  b6 {[%clk 0:00:45]} 44. Nd2 {[%clk 0:00:12]}  Rxh6 {[%clk 0:00:43]} 45. bxc5 {[%clk 0:00:10]}  bxc5 {[%clk 0:00:42]} 46. Ne4 {[%clk 0:00:06]}  Rh3+ {[%clk 0:00:37]} 47. Kd2 {[%clk 0:00:06]}  Rxa3 {[%clk 0:00:32]} 48. Nxc5 {[%clk 0:00:06]}  Ra2+ {[%clk 0:00:30]} 49. Kd3 {[%clk 0:00:07]}  Rxe2 {[%clk 0:00:31]} 50. Kxe2 {[%clk 0:00:06]}  Kf4 {[%clk 0:00:31]} 51. Kd3 {[%clk 0:00:06]}  Ke5 {[%clk 0:00:32]} 52. Nb3 {[%clk 0:00:07]}  Kd5 {[%clk 0:00:32]} 53. Nd2 {[%clk 0:00:07]}  Kc5 {[%clk 0:00:32]} 54. Nf1 {[%clk 0:00:08]}  Kb4 {[%clk 0:00:32]} 55. Ng3 {[%clk 0:00:09]}  Kb3 {[%clk 0:00:33]} 56. Ne2 {[%clk 0:00:09]}  Kb2 {[%clk 0:00:33]} 57. Nxd4 {[%clk 0:00:10]} 1/2-1/2


[Site "https://www.chess.com"]

[Event "Titled Tuesday Blitz November 29 Late 2022"]
[White "Gonzalez, Francisco Silva"]
[Black "Adury, Anant"]
[WhiteFideId "1512285"]
[BlackFideId "30964687"]
[WhiteElo "2159"]
[BlackElo "2187"]
[Result "1/2-1/2"]
[Round "07"]
[TimeControl "180+1"]
[Date "2022.11.30"]
[WhiteClock "0:00:23"]
[BlackClock "0:01:11"]

1. d4 {[%clk 0:02:48]}  c6 {[%clk 0:03:00]} 2. c4 {[%clk 0:02:47]}  d5 {[%clk 0:03:01]} 3. Nc3 {[%clk 0:02:47]}  Nf6 {[%clk 0:03:01]} 4. e3 {[%clk 0:02:47]}  g6 {[%clk 0:02:56]} 5. Nf3 {[%clk 0:02:47]}  Bg7 {[%clk 0:02:57]} 6. h3 {[%clk 0:02:46]}  O-O {[%clk 0:02:57]} 7. a4 {[%clk 0:02:44]}  Bf5 {[%clk 0:02:58]} 8. a5 {[%clk 0:02:43]}  Ne4 {[%clk 0:02:57]} 9. Qb3 {[%clk 0:02:43]}  Nxc3 {[%clk 0:02:56]} 10. Qxb7 {[%clk 0:02:39]}  Nd7 {[%clk 0:02:52]} 11. bxc3 {[%clk 0:02:39]}  Nf6 {[%clk 0:02:46]} 12. Ne5 {[%clk 0:02:34]}  Bd7 {[%clk 0:01:33]} 13. Bd3 {[%clk 0:02:28]}  Ne4 {[%clk 0:01:30]} 14. Bxe4 {[%clk 0:02:25]}  Bxe5 {[%clk 0:01:27]} 15. dxe5 {[%clk 0:02:20]}  dxe4 {[%clk 0:01:27]} 16. O-O {[%clk 0:02:16]}  Qc8 {[%clk 0:01:13]} 17. Qxc8 {[%clk 0:02:15]}  Rfxc8 {[%clk 0:01:07]} 18. Rd1 {[%clk 0:02:13]}  Be6 {[%clk 0:01:07]} 19. c5 {[%clk 0:02:12]}  Kf8 {[%clk 0:01:04]} 20. Rd4 {[%clk 0:02:11]}  Rd8 {[%clk 0:00:59]} 21. Rb1 {[%clk 0:02:04]}  Rxd4 {[%clk 0:00:47]} 22. exd4 {[%clk 0:01:56]}  Bc8 {[%clk 0:00:45]} 23. Bh6+ {[%clk 0:01:55]}  Ke8 {[%clk 0:00:45]} 24. Kf1 {[%clk 0:01:50]}  Kd8 {[%clk 0:00:39]} 25. Ke2 {[%clk 0:01:49]}  Kc7 {[%clk 0:00:38]} 26. Ke3 {[%clk 0:01:48]}  Be6 {[%clk 0:00:27]} 27. g4 {[%clk 0:01:43]}  Bd5 {[%clk 0:00:15]} 28. Bg5 {[%clk 0:01:23]}  Rb8 {[%clk 0:00:05]} 29. Rxb8 {[%clk 0:01:22]}  Kxb8 {[%clk 0:00:06]} 30. Bxe7 {[%clk 0:01:22]}  Kc7 {[%clk 0:00:07]} 31. c4 {[%clk 0:01:22]}  Bxc4 {[%clk 0:00:06]} 32. Kxe4 {[%clk 0:01:23]}  a6 {[%clk 0:00:06]} 33. e6 {[%clk 0:01:19]}  Bxe6 {[%clk 0:00:05]} 34. Ke5 {[%clk 0:01:20]}  h5 {[%clk 0:00:05]} 35. gxh5 {[%clk 0:01:15]}  gxh5 {[%clk 0:00:05]} 36. h4 {[%clk 0:01:04]}  Kd7 {[%clk 0:00:06]} 37. Kf6 {[%clk 0:01:03]}  Bd5 {[%clk 0:00:06]} 38. f4 {[%clk 0:01:02]}  Ke8 {[%clk 0:00:06]} 39. f5 {[%clk 0:01:00]}  Bf3 {[%clk 0:00:05]} 40. Bd6 {[%clk 0:00:57]}  Be4 {[%clk 0:00:06]} 41. Be5 {[%clk 0:00:55]}  Bf3 {[%clk 0:00:06]} 42. Bf4 {[%clk 0:00:53]}  Be4 {[%clk 0:00:06]} 43. Kg5 {[%clk 0:00:54]}  Bf3 {[%clk 0:00:06]} 44. d5 {[%clk 0:00:51]}  cxd5 {[%clk 0:00:05]} 45. c6 {[%clk 0:00:51]}  Kd8 {[%clk 0:00:06]} 46. Kf6 {[%clk 0:00:48]}  Be4 {[%clk 0:00:06]} 47. c7+ {[%clk 0:00:41]}  Kc8 {[%clk 0:00:06]} 48. Kg5 {[%clk 0:00:37]}  d4 {[%clk 0:00:06]} 49. Kxh5 {[%clk 0:00:35]}  Bxf5 {[%clk 0:00:06]} 50. Kg5 {[%clk 0:00:35]}  Be4 {[%clk 0:00:06]} 51. h5 {[%clk 0:00:35]}  d3 {[%clk 0:00:06]} 52. Kf6 {[%clk 0:00:35]}  d2 {[%clk 0:00:06]} 53. Bxd2 {[%clk 0:00:35]}  Kxc7 {[%clk 0:00:07]} 54. Kxf7 {[%clk 0:00:35]}  Kb7 {[%clk 0:00:08]} 55. Kg7 {[%clk 0:00:35]}  Ka8 {[%clk 0:00:08]} 56. h6 {[%clk 0:00:35]}  Bd3 {[%clk 0:00:09]} 57. h7 {[%clk 0:00:33]}  Bxh7 {[%clk 0:00:09]} 58. Kxh7 {[%clk 0:00:33]}  Kb8 {[%clk 0:00:10]} 59. Kg6 {[%clk 0:00:33]}  Ka8 {[%clk 0:00:10]} 60. Kf5 {[%clk 0:00:33]}  Kb8 {[%clk 0:00:11]} 61. Ke6 {[%clk 0:00:33]}  Ka8 {[%clk 0:00:12]} 62. Be3 {[%clk 0:00:33]}  Kb8 {[%clk 0:00:13]} 63. Kd5 {[%clk 0:00:33]}  Ka8 {[%clk 0:00:14]} 64. Kc6 {[%clk 0:00:33]}  Kb8 {[%clk 0:00:15]} 65. Bd4 {[%clk 0:00:31]}  Ka8 {[%clk 0:00:16]} 66. Kb6 {[%clk 0:00:31]}  Kb8 {[%clk 0:00:17]} 67. Kxa6 {[%clk 0:00:30]}  Ka8 {[%clk 0:00:18]} 68. Bf6 {[%clk 0:00:28]}  Kb8 {[%clk 0:00:19]} 69. Bd8 {[%clk 0:00:28]}  Ka8 {[%clk 0:00:19]} 70. Kb5 {[%clk 0:00:27]}  Kb8 {[%clk 0:00:20]} 71. Bb6 {[%clk 0:00:26]}  Ka8 {[%clk 0:00:21]} 72. a6 {[%clk 0:00:27]}  Kb8 {[%clk 0:00:22]} 73. Kc6 {[%clk 0:00:26]}  Ka8 {[%clk 0:00:23]} 74. Bd4 {[%clk 0:00:26]}  Kb8 {[%clk 0:00:24]} 75. Be5+ {[%clk 0:00:26]}  Ka8 {[%clk 0:00:25]} 76. Kb5 {[%clk 0:00:24]}  Ka7 {[%clk 0:00:25]} 77. Ka5 {[%clk 0:00:23]}  Ka8 {[%clk 0:00:25]} 78. Bd4 {[%clk 0:00:21]}  Kb8 {[%clk 0:00:26]} 79. Kb5 {[%clk 0:00:17]}  Ka8 {[%clk 0:00:27]} 80. Kc6 {[%clk 0:00:16]}  Kb8 {[%clk 0:00:28]} 81. Be3 {[%clk 0:00:15]}  Ka8 {[%clk 0:00:29]} 82. Bf2 {[%clk 0:00:13]}  Kb8 {[%clk 0:00:30]} 83. Bg1 {[%clk 0:00:13]}  Ka8 {[%clk 0:00:31]} 84. Kb5 {[%clk 0:00:12]}  Kb8 {[%clk 0:00:31]} 85. Bh2+ {[%clk 0:00:12]}  Ka8 {[%clk 0:00:32]} 86. Bg3 {[%clk 0:00:13]}  Ka7 {[%clk 0:00:33]} 87. Bh4 {[%clk 0:00:13]}  Ka8 {[%clk 0:00:34]} 88. Bg5 {[%clk 0:00:13]}  Kb8 {[%clk 0:00:34]} 89. Bf6 {[%clk 0:00:14]}  Ka8 {[%clk 0:00:35]} 90. Be7 {[%clk 0:00:15]}  Kb8 {[%clk 0:00:36]} 91. Bf8 {[%clk 0:00:15]}  Ka8 {[%clk 0:00:37]} 92. Bg7 {[%clk 0:00:16]}  Kb8 {[%clk 0:00:38]} 93. Bh6 {[%clk 0:00:17]}  Ka8 {[%clk 0:00:39]} 94. Bg5 {[%clk 0:00:17]}  Kb8 {[%clk 0:00:40]} 95. Bh4 {[%clk 0:00:18]}  Ka8 {[%clk 0:00:41]} 96. Bg3 {[%clk 0:00:19]}  Ka7 {[%clk 0:00:41]} 97. Bf2+ {[%clk 0:00:19]}  Ka8 {[%clk 0:00:42]} 98. Be3 {[%clk 0:00:20]}  Kb8 {[%clk 0:00:43]} 99. Bd4 {[%clk 0:00:21]}  Ka8 {[%clk 0:00:44]} 100. Bc3 {[%clk 0:00:21]}  Kb8 {[%clk 0:00:45]} 101. Bb4 {[%clk 0:00:22]}  Ka8 {[%clk 0:00:46]} 102. Ba5 {[%clk 0:00:22]}  Kb8 {[%clk 0:00:46]} 103. Bb6 {[%clk 0:00:23]}  Ka8 {[%clk 0:00:47]} 104. a7 {[%clk 0:00:21]}  Kb7 {[%clk 0:00:48]} 105. Ka5 {[%clk 0:00:20]}  Ka8 {[%clk 0:00:49]} 106. Bd4 {[%clk 0:00:20]}  Kb7 {[%clk 0:00:49]} 107. Be3 {[%clk 0:00:21]}  Ka8 {[%clk 0:00:50]} 108. Bf2 {[%clk 0:00:21]}  Kb7 {[%clk 0:00:51]} 109. Kb5 {[%clk 0:00:21]}  Ka8 {[%clk 0:00:52]} 110. Kc4 {[%clk 0:00:21]}  Kb7 {[%clk 0:00:53]} 111. Kd5 {[%clk 0:00:22]}  Ka8 {[%clk 0:00:54]} 112. Ke6 {[%clk 0:00:23]}  Kb7 {[%clk 0:00:55]} 113. Kd7 {[%clk 0:00:23]}  Ka8 {[%clk 0:00:56]} 114. Bg1 {[%clk 0:00:23]}  Kb7 {[%clk 0:00:57]} 115. Kd6 {[%clk 0:00:23]}  Ka8 {[%clk 0:00:58]} 116. Kd5 {[%clk 0:00:23]}  Kb7 {[%clk 0:00:58]} 117. Kc4 {[%clk 0:00:22]}  Ka8 {[%clk 0:00:59]} 118. Kb5 {[%clk 0:00:22]}  Kb7 {[%clk 0:01:00]} 119. Be3 {[%clk 0:00:21]}  Ka8 {[%clk 0:01:01]} 120. Bd4 {[%clk 0:00:21]}  Kb7 {[%clk 0:01:02]} 121. Bc5 {[%clk 0:00:20]}  Ka8 {[%clk 0:01:03]} 122. Bb6 {[%clk 0:00:20]}  Kb7 {[%clk 0:01:04]} 123. Ka5 {[%clk 0:00:20]}  Ka8 {[%clk 0:01:05]} 124. Bc5 {[%clk 0:00:20]}  Kb7 {[%clk 0:01:06]} 125. Bd4 {[%clk 0:00:21]}  Ka8 {[%clk 0:01:07]} 126. Be3 {[%clk 0:00:21]}  Kb7 {[%clk 0:01:07]} 127. Bf2 {[%clk 0:00:22]}  Ka8 {[%clk 0:01:08]} 128. Bg1 {[%clk 0:00:22]}  Kb7 {[%clk 0:01:09]} 129. Bf2 {[%clk 0:00:23]}  Ka8 {[%clk 0:01:10]} 130. Kb5 {[%clk 0:00:23]}  Kb7 {[%clk 0:01:11]} 131. Ka5 {[%clk 0:00:23]} 1/2-1/2


[Site "https://www.chess.com"]

[Event "Titled Tuesday Blitz November 29 Late 2022"]
[White "Hambleton, Aman"]
[Black "Toniutti, Ezio"]
[WhiteFideId "2606577"]
[BlackFideId "113034"]
[WhiteElo "2538"]
[BlackElo "2215"]
[Result "1-0"]
[Round "07"]
[TimeControl "180+1"]
[Date "2022.11.30"]
[WhiteClock "0:00:02"]
[BlackClock "0:00:01"]

1. d4 {[%clk 0:03:00]}  d5 {[%clk 0:02:57]} 2. Bf4 {[%clk 0:03:00]}  Nf6 {[%clk 0:02:55]} 3. e3 {[%clk 0:02:59]}  e6 {[%clk 0:02:55]} 4. Nd2 {[%clk 0:02:56]}  Bd6 {[%clk 0:02:56]} 5. Ngf3 {[%clk 0:02:56]}  O-O {[%clk 0:02:56]} 6. Bd3 {[%clk 0:02:54]}  c5 {[%clk 0:02:56]} 7. c3 {[%clk 0:02:54]}  Qc7 {[%clk 0:02:56]} 8. Bxd6 {[%clk 0:02:54]}  Qxd6 {[%clk 0:02:56]} 9. Ne5 {[%clk 0:02:55]}  Nc6 {[%clk 0:02:54]} 10. f4 {[%clk 0:02:55]}  b6 {[%clk 0:02:54]} 11. O-O {[%clk 0:02:55]}  a5 {[%clk 0:02:54]} 12. Qe2 {[%clk 0:02:48]}  Ne7 {[%clk 0:02:53]} 13. Rad1 {[%clk 0:02:24]}  Bb7 {[%clk 0:02:53]} 14. g4 {[%clk 0:02:13]}  Qc7 {[%clk 0:02:53]} 15. Qg2 {[%clk 0:01:57]}  a4 {[%clk 0:02:14]} 16. a3 {[%clk 0:01:27]}  b5 {[%clk 0:01:44]} 17. g5 {[%clk 0:01:19]}  Nd7 {[%clk 0:01:16]} 18. Qh3 {[%clk 0:01:11]}  g6 {[%clk 0:01:09]} 19. Ndf3 {[%clk 0:00:53]}  Nf5 {[%clk 0:01:00]} 20. Nxd7 {[%clk 0:00:36]}  Qxd7 {[%clk 0:00:59]} 21. Ne5 {[%clk 0:00:36]}  Qc7 {[%clk 0:00:52]} 22. Ng4 {[%clk 0:00:36]}  h5 {[%clk 0:00:23]} 23. gxh6 {[%clk 0:00:36]}  Kh8 {[%clk 0:00:20]} 24. Kh1 {[%clk 0:00:19]}  b4 {[%clk 0:00:17]} 25. Rg1 {[%clk 0:00:16]}  Ba6 {[%clk 0:00:17]} 26. Bxf5 {[%clk 0:00:03]}  exf5 {[%clk 0:00:17]} 27. Ne5 {[%clk 0:00:04]}  Qd6 {[%clk 0:00:13]} 28. cxb4 {[%clk 0:00:03]}  cxb4 {[%clk 0:00:13]} 29. axb4 {[%clk 0:00:03]}  Qf6 {[%clk 0:00:12]} 30. Rc1 {[%clk 0:00:03]}  Rac8 {[%clk 0:00:11]} 31. Rc5 {[%clk 0:00:03]}  Kh7 {[%clk 0:00:10]} 32. Nd7 {[%clk 0:00:03]}  Qe7 {[%clk 0:00:07]} 33. Nxf8+ {[%clk 0:00:02]}  Rxf8 {[%clk 0:00:08]} 34. Qf3 {[%clk 0:00:02]}  Bd3 {[%clk 0:00:08]} 35. Qg3 {[%clk 0:00:02]}  Be4+ {[%clk 0:00:08]} 36. Rg2 {[%clk 0:00:02]}  Bxg2+ {[%clk 0:00:07]} 37. Kxg2 {[%clk 0:00:03]}  Qe4+ {[%clk 0:00:07]} 38. Qf3 {[%clk 0:00:04]}  Qb1 {[%clk 0:00:07]} 39. Qf2 {[%clk 0:00:04]}  Qe4+ {[%clk 0:00:07]} 40. Kg3 {[%clk 0:00:05]}  Re8 {[%clk 0:00:06]} 41. Rc3 {[%clk 0:00:04]}  Re6 {[%clk 0:00:06]} 42. Qf3 {[%clk 0:00:04]}  Qb1 {[%clk 0:00:06]} 43. Qe2 {[%clk 0:00:04]}  Qg1+ {[%clk 0:00:06]} 44. Kh3 {[%clk 0:00:03]}  Qh1 {[%clk 0:00:03]} 45. Qg2 {[%clk 0:00:02]}  Qe1 {[%clk 0:00:02]} 46. Qg3 {[%clk 0:00:02]}  Qf1+ {[%clk 0:00:02]} 47. Qg2 {[%clk 0:00:02]}  Qe1 {[%clk 0:00:03]} 48. Qf3 {[%clk 0:00:02]}  Qg1 {[%clk 0:00:02]} 49. b5 {[%clk 0:00:02]}  Rb6 {[%clk 0:00:02]} 50. Rc7 {[%clk 0:00:02]}  Rf6 {[%clk 0:00:01]} 51. b6 {[%clk 0:00:02]}  Kxh6 {[%clk 0:00:01]} 52. b7 {[%clk 0:00:02]}  Rb6 {[%clk 0:00:01]} 53. Rc8 {[%clk 0:00:02]}  Rxb7 {[%clk 0:00:01]} 54. Qg3 {[%clk 0:00:02]}  Qf1+ {[%clk 0:00:01]} 55. Kh4 {[%clk 0:00:02]} 1-0


[Site "https://www.chess.com"]

[Event "Titled Tuesday Blitz November 29 Late 2022"]
[White "Hansen, Eric"]
[Black "Mahdavi, Reza"]
[WhiteFideId "2606771"]
[BlackFideId "12595926"]
[WhiteElo "2568"]
[BlackElo "2240"]
[Result "1-0"]
[Round "07"]
[TimeControl "180+1"]
[Date "2022.11.30"]
[WhiteClock "0:01:56"]
[BlackClock "0:02:16"]

1. e4 {[%clk 0:03:00]}  c5 {[%clk 0:03:00]} 2. Nf3 {[%clk 0:03:00]}  e6 {[%clk 0:03:00]} 3. d4 {[%clk 0:03:00]}  cxd4 {[%clk 0:03:01]} 4. Nxd4 {[%clk 0:03:01]}  Nc6 {[%clk 0:03:02]} 5. Nc3 {[%clk 0:03:02]}  Qc7 {[%clk 0:03:03]} 6. Be3 {[%clk 0:03:00]}  a6 {[%clk 0:03:03]} 7. Qd2 {[%clk 0:03:00]}  Nf6 {[%clk 0:03:03]} 8. O-O-O {[%clk 0:03:00]}  Be7 {[%clk 0:03:04]} 9. f3 {[%clk 0:03:00]}  d6 {[%clk 0:03:04]} 10. g4 {[%clk 0:03:00]}  b5 {[%clk 0:03:02]} 11. g5 {[%clk 0:03:00]}  Nd7 {[%clk 0:03:02]} 12. h4 {[%clk 0:03:01]}  Na5 {[%clk 0:03:00]} 13. b3 {[%clk 0:03:00]}  Bb7 {[%clk 0:03:00]} 14. Kb1 {[%clk 0:02:30]}  O-O {[%clk 0:02:42]} 15. g6 {[%clk 0:02:27]}  hxg6 {[%clk 0:02:39]} 16. h5 {[%clk 0:02:27]}  g5 {[%clk 0:02:39]} 17. Bxg5 {[%clk 0:02:22]}  Bxg5 {[%clk 0:02:39]} 18. Qxg5 {[%clk 0:02:23]}  Qxc3 {[%clk 0:02:38]} 19. Rg1 {[%clk 0:02:14]}  g6 {[%clk 0:02:32]} 20. hxg6 {[%clk 0:02:12]}  f5 {[%clk 0:02:20]} 21. Qe7 {[%clk 0:01:57]}  Nf6 {[%clk 0:02:16]} 22. Nxe6 {[%clk 0:01:56]} 1-0


[Site "https://www.chess.com"]

[Event "Titled Tuesday Blitz November 29 Late 2022"]
[White "Jobava, Baadur"]
[Black "Pap, Gyula"]
[WhiteFideId "13601520"]
[BlackFideId "725323"]
[WhiteElo "2582"]
[BlackElo "2519"]
[Result "1-0"]
[Round "07"]
[TimeControl "180+1"]
[Date "2022.11.30"]
[WhiteClock "0:00:07"]
[BlackClock "0:00:05"]

1. e4 {[%clk 0:03:00]}  e6 {[%clk 0:02:57]} 2. d4 {[%clk 0:02:56]}  d5 {[%clk 0:02:57]} 3. exd5 {[%clk 0:02:56]}  exd5 {[%clk 0:02:58]} 4. Nf3 {[%clk 0:02:57]}  Nc6 {[%clk 0:02:58]} 5. Nc3 {[%clk 0:02:55]}  Nf6 {[%clk 0:02:54]} 6. Bg5 {[%clk 0:02:53]}  Bg4 {[%clk 0:02:48]} 7. Bb5 {[%clk 0:02:45]}  Bb4 {[%clk 0:02:45]} 8. h3 {[%clk 0:02:29]}  Qe7+ {[%clk 0:02:40]} 9. Kf1 {[%clk 0:02:19]}  Bxf3 {[%clk 0:02:06]} 10. Qxf3 {[%clk 0:02:20]}  Bxc3 {[%clk 0:02:06]} 11. bxc3 {[%clk 0:02:09]}  O-O {[%clk 0:01:52]} 12. Re1 {[%clk 0:02:05]}  Qd6 {[%clk 0:01:45]} 13. Bxf6 {[%clk 0:01:53]}  Qxf6 {[%clk 0:01:26]} 14. Qxd5 {[%clk 0:01:10]}  Rad8 {[%clk 0:01:01]} 15. Qf3 {[%clk 0:01:04]}  Qxf3 {[%clk 0:01:01]} 16. gxf3 {[%clk 0:01:04]}  Rd6 {[%clk 0:00:58]} 17. Re3 {[%clk 0:00:52]}  Rfd8 {[%clk 0:00:54]} 18. Ke2 {[%clk 0:00:50]}  Kf8 {[%clk 0:00:54]} 19. Kd2 {[%clk 0:00:40]}  Ne7 {[%clk 0:00:52]} 20. Rhe1 {[%clk 0:00:38]}  c6 {[%clk 0:00:34]} 21. Rxe7 {[%clk 0:00:35]}  cxb5 {[%clk 0:00:35]} 22. Rxb7 {[%clk 0:00:35]}  a6 {[%clk 0:00:33]} 23. Re3 {[%clk 0:00:29]}  Rf6 {[%clk 0:00:31]} 24. Ra7 {[%clk 0:00:28]}  g6 {[%clk 0:00:24]} 25. Kd3 {[%clk 0:00:26]}  Rc6 {[%clk 0:00:24]} 26. Ree7 {[%clk 0:00:18]}  Rf6 {[%clk 0:00:23]} 27. Re3 {[%clk 0:00:17]}  Rc6 {[%clk 0:00:20]} 28. Kd2 {[%clk 0:00:17]}  Rd5 {[%clk 0:00:18]} 29. Re5 {[%clk 0:00:11]}  Rd8 {[%clk 0:00:18]} 30. h4 {[%clk 0:00:08]}  Rf6 {[%clk 0:00:17]} 31. Re3 {[%clk 0:00:08]}  h5 {[%clk 0:00:16]} 32. a3 {[%clk 0:00:06]}  Rdd6 {[%clk 0:00:15]} 33. Ke2 {[%clk 0:00:05]}  Rc6 {[%clk 0:00:14]} 34. Rd3 {[%clk 0:00:05]}  Rf4 {[%clk 0:00:13]} 35. d5 {[%clk 0:00:04]}  Rd6 {[%clk 0:00:13]} 36. Rd4 {[%clk 0:00:05]}  Rf5 {[%clk 0:00:12]} 37. Ke3 {[%clk 0:00:04]}  Kg7 {[%clk 0:00:11]} 38. f4 {[%clk 0:00:02]}  Rfxd5 {[%clk 0:00:05]} 39. Rxd5 {[%clk 0:00:01]}  Rxd5 {[%clk 0:00:06]} 40. Rxa6 {[%clk 0:00:02]}  Rc5 {[%clk 0:00:07]} 41. Kd3 {[%clk 0:00:02]}  Rd5+ {[%clk 0:00:07]} 42. Ke4 {[%clk 0:00:03]}  Rc5 {[%clk 0:00:08]} 43. Kd4 {[%clk 0:00:03]}  Rc4+ {[%clk 0:00:09]} 44. Kd3 {[%clk 0:00:03]}  Rxf4 {[%clk 0:00:09]} 45. Rb6 {[%clk 0:00:03]}  Rxh4 {[%clk 0:00:08]} 46. Rxb5 {[%clk 0:00:04]}  Rf4 {[%clk 0:00:06]} 47. Ke3 {[%clk 0:00:03]}  Rc4 {[%clk 0:00:06]} 48. Kd3 {[%clk 0:00:04]}  Ra4 {[%clk 0:00:06]} 49. Rb3 {[%clk 0:00:04]}  h4 {[%clk 0:00:06]} 50. c4 {[%clk 0:00:04]}  h3 {[%clk 0:00:06]} 51. Kd2 {[%clk 0:00:05]}  Rxc4 {[%clk 0:00:02]} 52. Rxh3 {[%clk 0:00:05]}  Ra4 {[%clk 0:00:03]} 53. Rf3 {[%clk 0:00:04]}  g5 {[%clk 0:00:03]} 54. Rb3 {[%clk 0:00:04]}  Kg6 {[%clk 0:00:03]} 55. Kd3 {[%clk 0:00:04]}  g4 {[%clk 0:00:04]} 56. c4 {[%clk 0:00:04]}  f5 {[%clk 0:00:04]} 57. c5 {[%clk 0:00:04]}  Kg5 {[%clk 0:00:04]} 58. c6 {[%clk 0:00:05]}  Ra7 {[%clk 0:00:04]} 59. Kd4 {[%clk 0:00:04]}  f4 {[%clk 0:00:03]} 60. Kd5 {[%clk 0:00:04]}  Kh4 {[%clk 0:00:01]} 61. Kd6 {[%clk 0:00:04]}  g3 {[%clk 0:00:01]} 62. fxg3+ {[%clk 0:00:05]}  fxg3 {[%clk 0:00:02]} 63. c7 {[%clk 0:00:06]}  Ra6+ {[%clk 0:00:02]} 64. Kd7 {[%clk 0:00:05]}  Ra7 {[%clk 0:00:03]} 65. Rb4+ {[%clk 0:00:05]}  Kh3 {[%clk 0:00:03]} 66. Rb3 {[%clk 0:00:05]}  Kh2 {[%clk 0:00:03]} 67. Kd8 {[%clk 0:00:05]}  g2 {[%clk 0:00:03]} 68. Rb2 {[%clk 0:00:06]}  Rxa3 {[%clk 0:00:02]} 69. c8=Q {[%clk 0:00:05]}  Rd3+ {[%clk 0:00:03]} 70. Ke7 {[%clk 0:00:05]}  Re3+ {[%clk 0:00:03]} 71. Kd6 {[%clk 0:00:06]}  Rf3 {[%clk 0:00:03]} 72. Qh8+ {[%clk 0:00:06]}  Kg1 {[%clk 0:00:04]} 73. Rb1+ {[%clk 0:00:06]}  Kf2 {[%clk 0:00:05]} 74. Qh4+ {[%clk 0:00:06]}  Ke2 {[%clk 0:00:05]} 75. Qe1+ {[%clk 0:00:05]}  Kd3 {[%clk 0:00:05]} 76. Rb3+ {[%clk 0:00:06]}  Kc4 {[%clk 0:00:05]} 77. Rxf3 {[%clk 0:00:07]} 1-0


[Site "https://www.chess.com"]